[Event "30th Tamil Nadu IM Norm 2024"]
[Site "Coimbatore"]
[Date "2024.10.03"]
[Round "6.5"]
[White "Nandish V S"]
[Black "Dhruva Thota"]
[Result "0-1"]
[ECO "A36"]
[WhiteElo "2212"]
[BlackElo "2342"]
[Annotator "RC"]
[PlyCount "58"]
[EventDate "2024.09.15"]
[EventCountry "IND"]
[SourceTitle "playchess.com"]
[Source "ChessBase"]
[SourceQuality "1"]
[TimeControl "5400+30"]

1. c4 {[%emt 0:00:01]} Nf6 {[%emt 0:00:28]} 2. Nc3 {[%emt 0:00:06]} g6 {[%emt 0:00:22]} 3. g3 {[%emt 0:00:06]} Bg7 {[%emt 0:00:10]} 4. Bg2 {[%emt 0:00:05]} O-O {[%emt 0:00:16]} 5. e4 {[%emt 0:00:07]} d6 {[%emt 0:00:45]} 6. Nge2 {[%emt 0:00:06]} c5 {[%emt 0:00:36]} 7. O-O {[%emt 0:00:12]} Nc6 {[%emt 0:00:25]} 8. d3 {[%emt 0:00:05]} Rb8 {[%emt 0:00:28]} 9. h3 {[%emt 0:00:07]} Ne8 {[%emt 0:00:46]} 10. Be3 {[%emt 0:00:07]} Nc7 {[%emt 0:00:46]} 11. d4 {[%emt 0:00:28]} b5 {[%emt 0:01:58]} 12. cxb5 {[%emt 0:11:50]} Nxb5 {[%emt 0:00:17]} 13. dxc5 {[%emt 0:06:01]} dxc5 {[%emt 0:00:27]} 14. Nxb5 {[%emt 0:32:31]} Rxb5 {[%emt 0:01:44]} 15. Rb1 {[%emt 0:06:23]} Qb6 {[%emt 0:15:23]} 16. b3 {[%emt 0:13:31]} Ba6 {[%emt 0:12:03]} 17. Nf4 {[%emt 0:05:22]} Ra5 {[%emt 0:04:54]} 18. Re1 {[%emt 0:10:39]} Rxa2 {[%emt 0:10:51]} 19. b4 {[%emt 0:05:15]} Nxb4 {[%emt 0:05:42]} 20. Nd5 {[%emt 0:00:12]} Qa5 {[%emt 0:06:44]} 21. Nxe7+ {[%emt 0:03:29]} Kh8 {[%emt 0:02:49]} 22. Qd6 {[%emt 0:00:24]} Nc2 {[%emt 0:04:59]} 23. Bg5 {[%emt 0:04:04]} Nxe1 {[%emt 0:19:42]} 24. Bf6 {[%emt 0:00:39]} Rd8 {[%emt 0:03:59]} 25. Qe5 {[%emt 0:00:39]} h5 {[%emt 0:01:01]} 26. Bxg7+ {[%emt 0:00:24]} Kh7 {[%emt 0:00:01]} 27. Qf6 {[%emt 0:00:34]} Qd2 {[%emt 0:03:12]} 28. Nc6 {[%emt 0:00:30]} Rd6 {[%emt 0:01:20]} 29. Rb8 {[%emt 0:00:24]} Rxf6 {[%emt 0:00:13]} 0-1